bitfinex/quotes_SOLUSD_20250822
["timestamp","ask_amount","ask_price","bid_price","bid_amount"]
[1755885190995,0.65,196.74,196.72,5.43540575]
[1755885192083,0.65,196.74,196.7,0.03]
[1755885192286,0.65,196.73,196.7,5.46540575]
[1755885192996,14.30559401,196.75,196.71,5.43540575]
[1755885193390,14.30559401,196.75,196.72,5.43540575]
[1755885193761,13.65559401,196.75,196.7,0.03]
[1755885193966,14.30559401,196.75,196.71,5.43540575]
[1755885194198,0.65,196.74,196.71,5.43540575]
[1755885194902,13.65559401,196.75,196.7,0.03]
[1755885195083,13.65559401,196.75,196.71,5.43540575]
[1755885195284,14.30559401,196.75,196.71,5.43540575]
[1755885197814,13.65559401,196.75,196.7,0.03]
[1755885197987,0.65,196.74,196.71,5.43540575]
[1755885198409,13.65559401,196.75,196.71,5.43540575]
[1755885198715,0.65,196.74,196.71,5.43540575]
[1755885199904,0.65,196.74,196.71,5.46540575]
[1755885200898,13.65559401,196.75,196.71,5.46540575]
[1755885201098,14.30559401,196.75,196.71,5.46540575]
[1755885202506,13.59559401,196.73,196.71,0.03]
[1755885202689,42.26,196.72,196.71,0.03]
[1755885204587,42.91,196.72,196.71,0.03]
[1755885204810,56.50559401,196.72,196.71,0.03]
[1755885205012,61.94099976,196.72,196.71,0.03]
[1755885205226,56.78991715,196.72,196.71,0.03]
[1755885205398,62.2253229,196.72,196.71,0.03]
[1755885206426,56.78991715,196.72,196.71,0.03]
[1755885206714,55.81559401,196.72,196.71,0.03]
[1755885207322,42.22,196.72,196.71,0.03]
[1755885207494,13.59559401,196.74,196.71,0.03]
[1755885207799,0.06,196.75,196.73,5.43540575]
[1755885207999,42.22,196.74,196.73,5.43540575]
[1755885208892,42.22,196.74,196.72,5.43540575]
[1755885209120,42.22,196.74,196.71,5.46540575]
[1755885209407,42.92,196.74,196.71,5.46540575]
[1755885209590,42.22,196.74,196.71,5.46540575]
[1755885210014,42.22,196.74,196.73,5.43540575]
[1755885210321,42.22,196.74,196.71,0.03]
[1755885210521,42.22,196.74,196.72,5.43540575]
[1755885210889,0.06,196.75,196.73,5.43540575]
[1755885211118,0.06,196.75,196.74,6.08540575]
[1755885211816,0.06,196.75,196.74,5.43540575]
[1755885212400,0.06,196.75,196.71,0.68]
[1755885212589,0.06,196.75,196.73,5.43540575]
[1755885213101,0.06,196.75,196.74,5.43540575]
[1755885213498,0.06,196.75,196.73,5.43540575]
[1755885214404,0.06,196.75,196.71,0.03]
[1755885214611,13.59559401,196.74,196.72,5.43540575]
[1755885215126,13.59559401,196.72,196.71,0.03]
[1755885215304,62.1753229,196.72,196.71,0.03]
[1755885220310,20.0153229,196.72,196.71,0.03]
[1755885220499,62.1553229,196.72,196.71,0.03]
[1755885220700,20.0153229,196.72,196.71,0.03]
[1755885220929,62.1553229,196.72,196.71,0.03]
[1755885221404,20.0153229,196.72,196.71,0.03]
[1755885221606,62.1553229,196.72,196.71,0.03]
[1755885222326,88.1553229,196.72,196.71,0.03]
[1755885222829,72.1553229,196.72,196.71,0.03]
[1755885223039,74.80854543,196.72,196.71,0.03]
[1755885223198,78.60853994,196.72,196.71,0.03]
[1755885223715,58.65313968,196.72,196.71,0.03]
[1755885223921,90.78854543,196.72,196.71,0.03]
[1755885224803,47.96854543,196.72,196.71,0.03]
[1755885224998,87.4353229,196.72,196.71,0.03]
[1755885225439,39.73775558,196.72,196.71,0.03]
[1755885225730,81.83775558,196.72,196.71,0.03]
[1755885225915,87.4153229,196.72,196.71,0.03]
[1755885226531,88.1153229,196.72,196.71,0.03]
[1755885227235,81.97991715,196.72,196.71,0.03]
[1755885227537,87.4153229,196.72,196.71,0.03]
[1755885228605,81.97991715,196.72,196.71,0.03]
[1755885228846,55.97991715,196.72,196.71,0.03]
[1755885229012,0.14216157,196.72,196.71,0.03]
[1755885229332,42.08,196.72,196.71,0.68]
[1755885229518,42.08,196.72,196.71,6.11540575]
[1755885230309,55.67559401,196.72,196.71,0.03]
[1755885230640,55.67559401,196.72,196.71,5.46540575]
[1755885230840,55.67559401,196.72,196.71,0.68]
[1755885231211,42.08,196.72,196.71,6.11540575]
[1755885231719,13.65559401,196.75,196.71,6.11540575]
[1755885231720,0.06,196.75,196.71,6.11540575]
[1755885231931,0.06,196.75,196.74,5.43540575]
[1755885232236,42.12,196.75,196.74,9.21076715]
[1755885232531,42.12,196.75,196.74,9.86076715]
[1755885232953,0.06,196.75,196.74,9.86076715]
[1755885233114,42.12,196.75,196.74,9.86076715]
[1755885233429,0.06,196.78,196.74,9.86076715]
[1755885233634,0.06,196.78,196.77,5.43540575]
[1755885233830,0.06,196.78,196.77,9.21076715]
[1755885234133,0.06,196.78,196.77,9.86076715]
[1755885234526,0.06,196.78,196.77,35.86076715]
[1755885237913,0.06,196.78,196.77,9.86076715]
[1755885238844,0.06,196.78,196.77,6.08540575]
[1755885239641,0.06,196.78,196.77,0.65]
[1755885239844,0.06,196.78,196.77,6.08540575]
[1755885240637,0.06,196.78,196.73,0.67]
[1755885240848,0.06,196.78,196.74,0.67]
[1755885241141,0.06,196.78,196.72,0.67]
[1755885241349,0.06,196.78,196.75,5.43540575]
[1755885241717,13.59559401,196.77,196.72,0.67]
[1755885241923,42.0,196.76,196.72,0.67]
[1755885242313,42.0,196.76,196.74,5.43540575]
[1755885242827,42.0,196.76,196.72,0.67]
[1755885243029,42.0,196.76,196.74,5.43540575]
[1755885243228,0.06,196.78,196.77,26.0]
[1755885243448,0.06,196.78,196.77,32.10540575]
[1755885250846,0.06,196.78,196.77,0.67]
[1755885251050,0.06,196.78,196.77,6.10540575]
[1755885253159,0.06,196.78,196.74,0.7]
[1755885253326,0.06,196.78,196.77,6.10540575]
[1755885253529,0.06,196.78,196.77,5.43540575]
[1755885254433,0.06,196.78,196.74,0.03]
[1755885254635,0.06,196.78,196.77,5.43540575]
[1755885256454,0.75,196.78,196.74,5.46540575]
[1755885256654,6.46972889,196.78,196.74,0.03]
[1755885256864,13.59559401,196.76,196.74,0.03]
[1755885257053,55.49559401,196.75,196.74,0.03]
[1755885257566,56.18559401,196.75,196.74,0.03]
[1755885257951,61.9053229,196.75,196.74,0.03]
[1755885258346,87.9053229,196.75,196.74,0.03]
[1755885259154,64.55734129,196.75,196.74,0.03]
[1755885260255,59.12193554,196.75,196.74,0.03]
[1755885260462,64.55734129,196.75,196.74,0.03]
[1755885260851,90.55734129,196.75,196.74,0.03]
[1755885262859,85.12193554,196.75,196.74,0.03]
[1755885263065,56.18559401,196.75,196.74,0.03]
[1755885263263,55.49559401,196.75,196.74,0.03]
[1755885263790,55.63775558,196.75,196.74,0.03]
[1755885264146,55.49559401,196.75,196.74,0.03]
[1755885264447,55.49559401,196.75,196.74,5.46540575]
[1755885264763,55.49559401,196.75,196.74,6.13540575]
[1755885264764,41.9,196.75,196.74,6.13540575]
[1755885265356,0.06,196.78,196.74,6.13540575]
[1755885265682,41.88,196.77,196.75,0.67]
[1755885266263,41.86,196.77,196.75,0.67]
[1755885266461,0.06,196.78,196.75,0.67]
[1755885266664,0.06,196.78,196.77,8.55257199]
[1755885266863,0.06,196.78,196.77,9.22257199]
[1755885268084,0.06,196.78,196.77,0.67]
[1755885268381,0.06,196.78,196.77,9.22257199]
[1755885269269,0.06,196.78,196.77,0.67]
[1755885269479,0.06,196.78,196.77,9.22257199]
[1755885271461,0.06,196.78,196.77,0.67]
[1755885271662,0.06,196.78,196.77,9.22257199]
[1755885273900,0.06,196.78,196.77,26.67]
[1755885274065,0.06,196.78,196.77,35.22257199]
[1755885277064,0.06,196.78,196.77,34.55257199]
[1755885277260,0.06,196.78,196.77,8.55257199]
[1755885277465,13.97559401,196.78,196.74,8.58257199]
[1755885277674,13.91559401,196.77,196.74,0.03]
[1755885277962,41.8,196.76,196.74,8.58257199]
[1755885278175,41.8,196.76,196.75,8.55257199]
[1755885281187,41.8,196.76,196.74,0.03]
[1755885281598,42.44,196.76,196.74,0.03]
[1755885281979,56.03559401,196.76,196.75,8.55257199]
[1755885282167,56.03559401,196.76,196.74,0.03]
[1755885282669,56.03559401,196.76,196.75,8.58257199]
[1755885283369,56.03559401,196.76,196.75,0.03]
[1755885284094,56.31991715,196.76,196.75,0.03]
[1755885284592,64.87248914,196.76,196.75,0.03]
[1755885286174,55.67991715,196.76,196.75,0.03]
[1755885286496,56.39991715,196.76,196.75,0.03]
[1755885288193,61.79193532,196.76,196.75,0.03]
[1755885288378,59.01231704,196.76,196.75,0.03]
[1755885288687,64.44433521,196.76,196.75,0.03]
[1755885288891,61.79193532,196.76,196.75,0.03]
[1755885289062,14.59991715,196.76,196.75,0.03]
[1755885289269,64.42452015,196.76,196.75,0.03]
[1755885289468,74.13837387,196.76,196.75,0.03]
[1755885290294,70.11388555,196.76,196.75,0.03]
[1755885290477,70.11225661,196.76,196.75,0.03]
[1755885290799,64.42452015,196.76,196.75,0.03]
[1755885290997,66.32016592,196.76,196.75,0.03]
[1755885291479,70.11076838,196.76,196.75,0.03]
[1755885291687,66.32016592,196.76,196.75,0.03]
[1755885291886,64.42452015,196.76,196.75,0.03]
[1755885292080,58.99250198,196.76,196.75,0.03]
[1755885292281,64.42452015,196.76,196.75,0.03]
[1755885294023,90.42452015,196.76,196.75,0.03]
[1755885294183,90.28235858,196.76,196.75,0.03]
[1755885294799,90.42452015,196.76,196.75,0.03]
[1755885296111,90.40452015,196.76,196.75,0.03]
[1755885296817,84.97250198,196.76,196.75,0.03]
[1755885297189,90.40452015,196.76,196.75,0.03]
[1755885299119,13.59559401,196.76,196.75,0.74]
[1755885299420,55.35559401,196.76,196.75,0.74]
[1755885299603,55.35559401,196.76,196.75,0.03]
[1755885300299,13.65559401,196.76,196.75,6.17201817]
[1755885300596,55.35559401,196.76,196.75,6.17201817]
[1755885300792,0.06,196.76,196.75,6.17201817]
[1755885301015,0.06,196.78,196.75,6.17201817]
[1755885301299,41.76,196.78,196.77,5.43201817]
[1755885301508,41.76,196.78,196.77,6.14201817]
[1755885302202,41.76,196.78,196.77,0.71]
[1755885302396,41.76,196.78,196.77,6.14201817]
[1755885302918,41.76,196.78,196.77,0.71]
[1755885303115,41.76,196.78,196.77,6.14201817]
[1755885303501,41.76,196.78,196.77,0.71]
[1755885303703,41.76,196.78,196.77,6.14201817]
[1755885306335,0.06,196.78,196.77,6.14201817]
[1755885306497,41.74,196.78,196.77,6.14201817]
[1755885307418,41.72,196.78,196.77,6.14201817]
[1755885308925,0.06,196.78,196.77,6.14201817]
[1755885309128,0.06,196.78,196.77,76.2391949]
[1755885309429,0.06,196.81,196.77,15.3391949]
[1755885309618,0.06,196.83,196.8,31.43201817]
[1755885309798,0.06,196.85,196.82,31.43201817]
[1755885309998,0.06,196.85,196.84,5.43201817]
[1755885310432,0.06,196.85,196.84,6.14201817]
[1755885310640,0.06,196.85,196.84,9.90217291]
[1755885311031,0.06,196.85,196.84,9.90092044]
[1755885312001,0.06,196.85,196.84,9.90092612]
[1755885312813,0.06,196.85,196.84,4.46890795]
[1755885313020,0.06,196.86,196.84,9.90092612]
[1755885313225,0.06,196.86,196.85,9.90092612]
[1755885313915,0.06,196.86,196.85,6.14201817]
[1755885314234,0.06,196.86,196.85,9.89703227]
[1755885314429,41.62,196.93,196.9,10.86403634]
[1755885314620,41.62,196.93,196.92,5.43201817]
[1755885315327,0.69,196.99,196.92,6.14201817]
[1755885315520,55.19559401,196.98,196.92,0.71]
[1755885316128,55.88559401,196.98,196.92,0.71]
[1755885316314,55.19559401,196.98,196.92,0.71]
[1755885316715,55.19559401,196.98,196.96,5.43201817]
[1755885316909,55.88559401,196.98,196.97,5.43201817]
[1755885317319,55.19559401,196.98,196.97,5.43201817]
[1755885317514,55.88559401,196.98,196.97,5.43201817]
[1755885317734,55.88559401,196.98,196.96,5.43201817]
[1755885317929,14.28559401,196.98,196.96,5.43201817]
[1755885318125,55.19559401,196.97,196.96,5.43201817]
[1755885319820,41.6,196.97,196.96,5.43201817]
[1755885320336,13.59559401,197.0,196.96,5.43201817]
[1755885320539,13.59559401,197.02,196.99,5.43201817]
[1755885320748,13.59559401,197.02,197.01,5.43201817]
[1755885320919,55.31775558,197.02,197.01,5.43201817]
[1755885321120,55.45991715,197.02,197.01,5.43201817]
[1755885321375,14.15528478,197.04,197.01,5.43201817]
[1755885321517,41.56,197.02,196.99,0.71]
[1755885321718,41.56,197.02,197.01,5.43201817]
[1755885322723,41.56,197.02,197.01,6.14201817]
[1755885324132,41.56,197.02,197.01,5.43201817]
[1755885326828,41.56,197.02,196.99,0.71]
[1755885327253,41.56,197.02,197.01,5.43201817]
[1755885327556,41.56,197.02,196.99,0.71]
[1755885328059,41.56,197.02,197.01,5.43201817]
[1755885328364,14.15528478,197.04,197.01,11.56403634]
[1755885328659,41.52,197.03,197.02,0.7]
[1755885328837,41.52,197.03,197.02,6.13201817]
[1755885329021,41.52,197.03,197.02,5.43201817]
[1755885331032,41.52,197.03,196.99,0.7]
[1755885331237,41.52,197.03,197.0,0.7]
[1755885331441,41.52,197.03,197.02,5.43201817]
[1755885332240,41.5,197.03,197.02,5.43201817]
[1755885332630,41.48,197.03,197.02,5.43201817]
[1755885332838,41.48,197.03,197.02,6.13201817]
[1755885333234,41.54,197.03,197.02,6.13201817]
[1755885333460,41.54,197.03,197.02,5.43201817]
[1755885333957,41.54,197.03,197.0,0.7]
[1755885334159,41.54,197.03,197.02,5.43201817]
[1755885336068,41.54,197.03,196.98,0.7]
[1755885336385,42.26,197.03,197.02,5.43201817]
[1755885337074,41.54,197.03,197.02,5.43201817]
[1755885338453,0.06,197.03,197.02,5.43201817]
[1755885338978,41.52,197.03,197.02,5.43201817]
[1755885339644,41.52,197.03,196.98,0.7]
[1755885339842,41.52,197.03,196.99,0.7]
[1755885340186,41.52,197.03,197.02,5.43201817]
[1755885341068,0.06,197.03,197.02,0.7]
[1755885341257,41.5,197.03,197.02,6.13201817]
[1755885343266,0.06,197.03,197.02,6.13201817]
[1755885344096,0.06,197.03,197.02,9.85143728]
[1755885344685,0.06,197.03,197.02,10.13576042]
[1755885345391,0.2,197.05,197.04,31.43201817]
[1755885345689,0.2,197.05,197.04,35.15143728]
[1755885345988,0.2,197.05,197.04,10.13576042]
[1755885346285,0.06,197.07,197.06,31.71634131]
[1755885346466,0.06,197.07,197.06,35.4342533]
[1755885346794,0.06,197.07,197.06,36.1342533]
[1755885347084,0.72,197.17,197.14,5.43201817]
[1755885347284,0.72,197.16,197.15,5.43201817]
[1755885348273,42.12,197.18,197.15,5.43201817]
[1755885348479,55.71559401,197.18,197.17,5.43201817]
[1755885349080,55.71559401,197.18,197.15,5.43201817]
[1755885349280,42.12,197.18,197.12,0.7]
[1755885349596,42.12,197.18,197.15,5.43201817]
[1755885350272,0.06,197.16,197.15,5.43201817]
[1755885351086,41.44,197.16,197.15,5.43201817]
[1755885351679,41.44,197.16,197.13,0.7]
[1755885351881,41.44,197.16,197.15,5.43201817]
[1755885352577,0.06,197.16,197.15,6.13201817]
[1755885352786,41.42,197.16,197.15,5.43201817]
[1755885353700,0.06,197.16,197.15,5.43201817]
[1755885354075,0.06,197.16,197.15,6.13201817]
[1755885354381,0.06,197.16,197.15,3.72357953]
[1755885354600,0.06,197.16,197.15,6.13201817]
[1755885354901,0.06,197.16,197.15,9.85714022]
[1755885355207,0.06,197.16,197.15,9.15680603]
[1755885355577,0.06,197.16,197.15,5.43201817]
[1755885355775,0.78,197.16,197.14,5.43201817]
[1755885355975,41.34,197.15,197.13,5.43201817]
[1755885356183,41.34,197.15,197.14,3.72581683]
[1755885356406,41.34,197.15,197.12,0.7]
[1755885356586,41.34,197.15,197.14,5.43201817]
[1755885356793,0.06,197.16,197.14,9.15859442]
[1755885356988,41.34,197.15,197.08,0.31432314]
[1755885357207,41.34,197.15,197.11,0.67]
[1755885357408,41.34,197.15,197.12,3.72630242]
[1755885357723,41.34,197.15,197.13,3.72630242]
[1755885358012,41.34,197.15,197.14,3.72630242]
[1755885358515,41.34,197.15,197.14,9.15832059]
[1755885359179,41.34,197.15,197.14,9.15942352]
[1755885359495,41.34,197.15,197.14,9.16073578]
[1755885359676,41.38,197.16,197.14,9.16073578]
[1755885359879,41.38,197.16,197.12,0.67]
[1755885360180,0.72,197.15,197.11,5.43201817]
[1755885360386,0.72,197.15,197.12,9.16250547]
[1755885360579,41.38,197.16,197.09,26.67]
[1755885360795,0.72,197.14,197.1,9.16251324]
[1755885361002,41.32,197.15,197.11,9.16251324]
[1755885361212,13.65559401,197.16,197.13,5.43201817]
[1755885361509,41.32,197.14,197.13,5.43201817]
[1755885361680,41.32,197.14,197.12,0.67]
[1755885361877,41.32,197.14,197.09,26.0]
[1755885362081,0.72,197.13,197.12,5.43201817]
[1755885362281,0.72,197.13,197.12,9.16459623]
[1755885362580,41.32,197.14,197.12,3.73257806]
[1755885362784,42.04,197.14,197.11,26.0]
[1755885363108,42.04,197.14,197.12,9.16546798]
[1755885363319,41.32,197.14,197.12,5.43201817]
[1755885363485,0.06,197.16,197.13,5.43201817]
[1755885363686,41.32,197.15,197.11,0.67]
[1755885363918,41.32,197.15,197.13,5.43201817]
[1755885364304,0.06,197.16,197.14,5.43201817]
[1755885364500,41.3,197.15,197.14,5.43201817]
[1755885365583,0.06,197.16,197.14,5.43201817]
[1755885365786,41.3,197.15,197.14,5.43201817]
[1755885366006,0.06,197.16,197.14,9.16786122]
[1755885366216,41.36,197.16,197.15,9.83759867]
[1755885366624,41.36,197.16,197.15,9.16759867]
[1755885367320,0.06,197.16,197.15,9.16759867]
[1755885368698,0.06,197.16,197.15,9.83759867]
[1755885369311,0.06,197.16,197.15,4.4055805]
[1755885369524,0.06,197.16,197.15,9.83759867]
[1755885369826,0.06,197.16,197.15,3.7355805]
[1755885370125,0.06,197.16,197.15,32.10201817]
[1755885370316,0.06,197.16,197.15,35.83759867]
[1755885371223,0.06,197.16,197.15,35.16759867]
[1755885372019,0.78,197.16,197.15,31.43201817]
[1755885372210,0.78,197.16,197.15,26.0]
[1755885372406,0.78,197.16,197.14,5.43201817]
[1755885372729,0.06,197.16,197.1,0.28432314]
[1755885372927,6.15201817,197.15,197.11,3.74108183]
[1755885373226,41.98,197.14,197.12,3.74349718]
[1755885373398,41.26,197.14,197.12,3.74349718]
[1755885373602,41.26,197.14,197.13,5.43201817]
[1755885373827,41.26,197.14,197.13,3.74222972]
[1755885374035,41.26,197.14,197.13,9.17424789]
[1755885374395,0.06,197.16,197.13,9.17424789]
[1755885374600,41.26,197.15,197.13,5.43201817]
[1755885374918,41.26,197.15,197.11,26.67]
[1755885375233,41.24,197.14,197.13,5.43201817]
[1755885375527,41.24,197.14,197.13,9.17691423]
[1755885376027,0.06,197.16,197.13,9.17691423]
[1755885376225,0.06,197.16,197.14,0.67]
[1755885376396,41.24,197.15,197.14,0.67]
[1755885376998,41.24,197.15,197.14,6.10201817]
[1755885377295,41.3,197.16,197.14,6.10201817]
[1755885377500,41.3,197.16,197.15,6.10201817]
[1755885377730,41.3,197.16,197.15,5.43201817]
[1755885377931,41.3,197.16,197.13,26.0]
[1755885378109,42.02,197.16,197.14,5.43201817]
[1755885378436,41.3,197.16,197.15,9.17941718]
[1755885378954,42.02,197.16,197.15,3.74739901]
[1755885379140,41.3,197.16,197.15,3.74739901]
[1755885379321,41.3,197.16,197.15,3.74748192]
[1755885379518,41.3,197.16,197.15,5.43201817]
[1755885379723,41.3,197.16,197.15,9.17966709]
[1755885380023,41.3,197.16,197.15,9.84994463]
[1755885381034,41.28,197.16,197.15,9.84994463]
[1755885381345,41.28,197.16,197.15,9.17994463]
[1755885381837,42.0,197.16,197.15,9.17994463]
[1755885382043,61.02761218,197.16,197.15,3.74792646]
[1755885382207,0.06,197.16,197.13,5.43201817]
[1755885382410,41.22,197.15,197.14,5.43201817]
[1755885382630,41.22,197.15,197.14,9.18688886]
[1755885382844,41.22,197.15,197.14,9.18653238]
[1755885383015,13.59559401,197.14,197.1,5.43201817]
[1755885383217,13.59559401,197.14,197.11,9.18756266]
[1755885383428,13.59559401,197.15,197.12,3.75554449]
[1755885383746,41.22,197.13,197.11,5.43201817]
[1755885383955,41.22,197.13,197.12,9.19043061]
[1755885384939,41.22,197.13,197.12,3.75841244]
[1755885385145,41.22,197.13,197.12,9.19043061]
[1755885385548,41.22,197.13,197.12,3.75841244]
[1755885385739,41.2,197.13,197.12,9.19043061]
[1755885386136,41.2,197.13,197.12,3.75841244]
[1755885386334,41.2,197.13,197.12,9.19043061]
[1755885386540,41.2,197.13,197.12,3.75841244]
[1755885386743,41.2,197.13,197.12,9.19043061]
[1755885387128,41.2,197.13,197.12,3.75841244]
[1755885388539,41.2,197.13,197.12,9.19043061]
[1755885389048,41.88,197.13,197.12,3.75841244]
[1755885389246,41.2,197.13,197.12,3.75841244]
[1755885389431,41.2,197.13,197.12,9.19043061]
[1755885390653,0.06,197.16,197.12,9.89043061]
[1755885390954,0.06,197.16,197.15,5.43201817]
[1755885391132,41.24,197.16,197.15,9.19043061]
[1755885391332,41.24,197.16,197.1,26.0]
[1755885391333,41.92,197.16,197.1,26.7]
[1755885391545,0.06,197.16,197.13,5.43201817]
[1755885391754,41.18,197.15,197.14,4.47674402]
[1755885391957,41.18,197.15,197.14,9.91057024]
[1755885392461,41.18,197.15,197.14,9.21057024]
[1755885393033,0.06,197.16,197.14,9.91057024]
[1755885393228,41.24,197.16,197.15,9.91057024]
[1755885393434,41.24,197.16,197.15,4.47855207]
[1755885393435,0.06,197.16,197.15,4.47855207]
[1755885393837,0.06,197.16,197.15,9.21057024]
[1755885394359,0.06,197.16,197.15,9.91057024]
[1755885394971,0.06,197.16,197.15,3.77855207]
[1755885395151,0.06,197.16,197.15,9.21057024]
[1755885395849,0.06,197.16,197.15,4.47855207]
[1755885396234,0.06,197.16,197.15,9.91057024]
[1755885397355,0.06,197.16,197.15,35.90533499]
[1755885398575,0.06,197.16,197.15,3.77331682]
[1755885398739,0.54,197.16,197.15,9.20533499]
[1755885398943,0.06,197.16,197.15,9.20533499]
[1755885399644,0.06,197.16,197.15,35.90533499]
[1755885400566,0.06,197.16,197.15,35.90555807]
[1755885400765,0.06,197.16,197.15,30.4735399]
[1755885400966,0.06,197.16,197.15,35.90496308]
[1755885401352,0.06,197.16,197.15,35.90441128]
[1755885402063,0.06,197.16,197.15,3.77239311]
[1755885402233,19.76761218,197.16,197.15,3.77239311]
[1755885402441,19.76761218,197.16,197.1,31.43201817]
[1755885402764,47.25201817,197.15,197.1,26.0]
[1755885402942,0.68,197.14,197.1,31.43201817]
[1755885403142,0.68,197.14,197.11,5.43201817]
[1755885403367,0.68,197.14,197.1,26.0]
[1755885403569,0.68,197.14,197.1,31.43201817]
[1755885403759,0.68,197.13,197.1,31.43201817]
[1755885403987,41.82,197.15,197.11,5.43201817]
[1755885404154,41.14,197.15,197.1,31.43201817]
[1755885404464,41.14,197.15,197.1,26.0]
[1755885404675,0.68,197.14,197.1,26.0]
[1755885404875,0.68,197.14,197.11,5.43201817]
[1755885405374,46.57201817,197.15,197.1,26.0]
[1755885405555,46.57201817,197.15,197.08,0.73]
[1755885405556,6.11201817,197.13,197.08,0.03]
[1755885405754,19.02761218,197.11,197.08,0.03]
[1755885405964,41.12,197.1,197.08,0.03]
[1755885406159,47.23201817,197.1,197.08,0.03]
[1755885406346,0.68,197.09,197.08,0.03]
[1755885406747,41.12,197.1,197.08,0.03]
[1755885407252,41.8,197.1,197.08,0.03]
[1755885407969,41.12,197.1,197.08,0.03]
[1755885408170,41.8,197.1,197.08,0.03]
[1755885408368,6.11201817,197.09,197.08,0.03]
[1755885408586,14.27559401,197.09,197.08,0.03]
[1755885409493,55.39559401,197.09,197.08,0.03]
[1755885409783,41.1,197.09,197.08,0.03]
[1755885410352,41.78,197.09,197.08,0.03]
[1755885410554,60.80761218,197.09,197.08,0.03]
[1755885413164,61.09193532,197.09,197.08,0.03]
[1755885413480,39.87991715,197.07,197.06,0.03]
[1755885413779,45.31193532,197.07,197.06,0.03]
[1755885413991,45.99193532,197.07,197.06,0.03]
[1755885414371,86.80761218,197.07,197.06,0.03]
[1755885415379,81.37559401,197.07,197.06,0.03]
[1755885415569,45.70761218,197.07,197.06,0.03]
[1755885415888,60.80761218,197.07,197.06,0.03]
[1755885416181,61.09193532,197.07,197.06,0.03]
[1755885416857,39.87991715,197.05,197.04,0.03]
[1755885417061,60.41193532,197.05,197.04,0.03]
[1755885417257,61.11193532,197.05,197.04,0.03]
[1755885419766,46.01193532,197.05,197.04,0.03]
[1755885419972,61.09193532,197.05,197.04,0.03]
[1755885420176,61.09193532,197.05,196.89,5.43201817]
[1755885420177,39.59559401,196.99,196.89,5.43201817]
[1755885420463,5.43201817,196.92,196.89,0.66]
[1755885420667,46.51201817,196.91,196.89,0.66]
[1755885420870,13.59559401,196.89,196.88,0.1]
[1755885421086,60.10761218,196.89,196.88,0.1]
[1755885421263,54.67559401,196.89,196.88,0.76]
[1755885421463,60.10761218,196.89,196.88,0.1]
[1755885421663,54.67559401,196.89,196.88,0.1]
[1755885422271,54.67559401,196.89,196.88,0.76]
[1755885422469,0.7,196.94,196.88,0.76]
[1755885422470,13.59559401,196.91,196.88,0.76]
[1755885422805,41.08,196.9,196.89,5.43201817]
[1755885423106,41.08,196.9,196.89,6.09201817]
[1755885423583,41.08,196.92,196.89,6.09201817]
[1755885423785,41.08,196.92,196.91,5.43201817]
[1755885423994,41.08,196.92,196.91,6.09201817]
[1755885424990,54.67559401,196.96,196.91,6.09201817]
[1755885425316,54.67559401,196.96,196.93,5.43201817]
[1755885425602,54.67559401,196.96,196.94,0.66]
[1755885426512,13.59559401,196.96,196.95,0.66]
[1755885426700,54.67559401,196.96,196.93,6.09201817]
[1755885426899,54.67559401,196.96,196.93,5.43201817]
[1755885427094,54.67559401,196.96,196.94,0.66]